[Event "*** Titled Tuesday 3|2 Blitz"]
[Site "Chess.com"]
[Date "2017.06.06"]
[Round "7"]
[White "ChessQueen"]
[Black "olgerts_indricans"]
[Result "1-0"]
[WhiteElo "2499"]
[BlackElo "2298"]
[TimeControl "180+2"]
[EndTime "15:22:23 PDT"]
[Termination "ChessQueen won by resignation"]

1. e4 {[%clk 0:03:00.8]} 1... c5 {[%clk 0:02:59.7]} 2. Nf3 {[%clk 0:03:01.3]}
2... e6 {[%clk 0:02:59.8]} 3. d4 {[%clk 0:03:01.4]} 3... cxd4 {[%clk 0:03:00.6]}
4. Nxd4 {[%clk 0:03:02.5]} 4... Nc6 {[%clk 0:03:01.5]} 5. Nc3 {[%clk 0:03:03.1]}
5... Qc7 {[%clk 0:03:01.8]} 6. Be2 {[%clk 0:03:03.3]} 6... Nf6 {[%clk
0:03:02.2]} 7. Be3 {[%clk 0:03:04.1]} 7... Be7 {[%clk 0:03:01.7]} 8. f4 {[%clk
0:03:03.8]} 8... d6 {[%clk 0:03:00.6]} 9. Qd2 {[%clk 0:02:55.3]} 9... a6 {[%clk
0:02:53.6]} 10. O-O-O {[%clk 0:02:43.7]} 10... Nxd4 {[%clk 0:02:47.1]} 11. Qxd4
{[%clk 0:02:41.6]} 11... O-O {[%clk 0:02:42.1]} 12. e5 {[%clk 0:02:41.3]} 12...
dxe5 {[%clk 0:02:37.5]} 13. fxe5 {[%clk 0:02:35.3]} 13... Nd5 {[%clk 0:02:33.7]}
14. Nxd5 {[%clk 0:02:33.8]} 14... exd5 {[%clk 0:02:33.7]} 15. Bd3 {[%clk
0:01:44.2]} 15... Be6 {[%clk 0:02:28.3]} 16. Rhe1 {[%clk 0:01:39.2]} 16... Rfc8
{[%clk 0:02:25.7]} 17. Kb1 {[%clk 0:01:37.8]} 17... Bc5 {[%clk 0:02:18.9]} 18.
Qh4 {[%clk 0:01:32.9]} 18... g6 {[%clk 0:02:17.8]} 19. Bg5 {[%clk 0:01:31.7]}
19... Qb6 {[%clk 0:02:03.8]} 20. Bf6 {[%clk 0:01:06]} 20... Ba3 {[%clk
0:01:52.7]} 21. b3 {[%clk 0:01:04.1]} 21... a5 {[%clk 0:01:31.8]} 22. Qh6 {[%clk
0:00:38.3]} 22... Bf8 {[%clk 0:01:30.8]} 23. Qe3 {[%clk 0:00:16.8]} 23... Bc5
{[%clk 0:01:29.3]} 24. Qh6 {[%clk 0:00:16]} 24... Bf8 {[%clk 0:01:29.2]} 25. Qe3
{[%clk 0:00:17]} 25... d4 {[%clk 0:01:28.9]} 26. Qg3 {[%clk 0:00:17.1]} 26... a4
{[%clk 0:01:27.9]} 27. Re2 {[%clk 0:00:07.9]} 27... Rc3 {[%clk 0:01:17.4]} 28.
Rdd2 {[%clk 0:00:05.3]} 28... Bh6 {[%clk 0:01:08.3]} 29. Bg5 {[%clk 0:00:05.9]}
29... Bg7 {[%clk 0:01:08.4]} 30. h4 {[%clk 0:00:06.8]} 30... Qa5 {[%clk
0:01:05.2]} 31. h5 {[%clk 0:00:06.4]} 31... Bxe5 {[%clk 0:01:05.1]} 32. Rxe5
{[%clk 0:00:06.3]} 32... Qb4 {[%clk 0:00:57.4]} 33. hxg6 {[%clk 0:00:06.8]}
33... hxg6 {[%clk 0:00:55.1]} 34. Rxe6 {[%clk 0:00:08]} 34... axb3 {[%clk
0:00:51.1]} 35. Rxg6+ {[%clk 0:00:07]} 35... fxg6 {[%clk 0:00:48.4]} 36. cxb3
{[%clk 0:00:06.1]} 36... Qc5 {[%clk 0:00:31.6]} 37. Rc2 {[%clk 0:00:05.4]} 37...
Rxc2 {[%clk 0:00:27.3]} 38. Bxc2 {[%clk 0:00:06]} 38... Qa3 {[%clk 0:00:22.4]}
39. Qd3 {[%clk 0:00:03.4]} 39... Qxa2+ {[%clk 0:00:21.8]} 40. Kc1 {[%clk
0:00:05]} 40... Qa1+ {[%clk 0:00:23.4]} 41. Kd2 {[%clk 0:00:06.4]} 41... Qc3+
{[%clk 0:00:22.2]} 42. Qxc3 {[%clk 0:00:07.1]} 42... dxc3+ {[%clk 0:00:24.1]}
43. Kxc3 {[%clk 0:00:08.8]} 43... Kg7 {[%clk 0:00:24.6]} 44. Be3 {[%clk
0:00:09.5]} 44... Rc8+ {[%clk 0:00:25.5]} 45. Kb2 {[%clk 0:00:10.2]} 45... Kf6
{[%clk 0:00:26.1]} 46. g4 {[%clk 0:00:10.9]} 46... g5 {[%clk 0:00:26.2]} 47.
Bd4+ {[%clk 0:00:11.8]} 47... Kf7 {[%clk 0:00:26.5]} 48. Bf5 {[%clk 0:00:13.4]}
48... Rd8 {[%clk 0:00:27.3]} 49. Be3 {[%clk 0:00:14.4]} 49... Rd5 {[%clk
0:00:27.1]} 50. Bxg5 {[%clk 0:00:14.5]} 50... Rd1 {[%clk 0:00:26.5]} 51. Kc2
{[%clk 0:00:14.3]} 51... Rg1 {[%clk 0:00:26.8]} 52. Be3 {[%clk 0:00:15.3]} 52...
Kf6 {[%clk 0:00:27.1]} 53. Bxg1 {[%clk 0:00:15.9]} 1-0

[Event "*** Titled Tuesday 3|2 Blitz"]
[Site "Chess.com"]
[Date "2017.06.06"]
[Round "7"]
[White "maciek_92"]
[Black "Illingworth"]
[Result "0-1"]
[WhiteElo "2538"]
[BlackElo "2711"]
[TimeControl "180+2"]
[EndTime "15:22:25 PDT"]
[Termination "Illingworth won by checkmate"]

1. c4 {[%clk 0:03:02]} 1... c6 {[%clk 0:02:59]} 2. Nf3 {[%clk 0:03:02.6]} 2...
d5 {[%clk 0:02:59.8]} 3. b3 {[%clk 0:03:03.5]} 3... Nf6 {[%clk 0:02:58.1]} 4.
Bb2 {[%clk 0:03:04.9]} 4... Bf5 {[%clk 0:02:58.5]} 5. g3 {[%clk 0:03:03.8]} 5...
e6 {[%clk 0:02:59.2]} 6. Bg2 {[%clk 0:03:05.2]} 6... Nbd7 {[%clk 0:02:59.5]} 7.
O-O {[%clk 0:03:06.7]} 7... h6 {[%clk 0:02:59.8]} 8. d3 {[%clk 0:03:08.1]} 8...
Be7 {[%clk 0:03:00.8]} 9. Nc3 {[%clk 0:03:07.5]} 9... O-O {[%clk 0:03:01.3]} 10.
Qc2 {[%clk 0:03:09]} 10... Bh7 {[%clk 0:03:01.7]} 11. Rad1 {[%clk 0:03:09.1]}
11... a5 {[%clk 0:03:02.1]} 12. Qc1 {[%clk 0:03:01.3]} 12... Re8 {[%clk
0:02:58.1]} 13. Rfe1 {[%clk 0:02:56]} 13... Nc5 {[%clk 0:02:53.8]} 14. h3 {[%clk
0:02:52.3]} 14... Qb8 {[%clk 0:02:53.9]} 15. Ba1 {[%clk 0:02:18.4]} 15... Rc8
{[%clk 0:02:43]} 16. Qe3 {[%clk 0:01:25]} 16... b5 {[%clk 0:02:39.8]} 17. d4
{[%clk 0:01:26.5]} 17... Nce4 {[%clk 0:02:37.7]} 18. c5 {[%clk 0:01:27.5]} 18...
Nxc3 {[%clk 0:02:32.1]} 19. Bxc3 {[%clk 0:01:28.2]} 19... b4 {[%clk 0:02:33.1]}
20. Bb2 {[%clk 0:01:26.8]} 20... a4 {[%clk 0:02:32.4]} 21. Ne5 {[%clk
0:01:07.2]} 21... Qb5 {[%clk 0:02:30.6]} 22. Rc1 {[%clk 0:01:01.7]} 22... Ra7
{[%clk 0:02:17.7]} 23. g4 {[%clk 0:00:58.4]} 23... Rca8 {[%clk 0:02:11.4]} 24.
h4 {[%clk 0:00:29.9]} 24... Ne4 {[%clk 0:02:10.7]} 25. Qf4 {[%clk 0:00:15.9]}
25... Bxh4 {[%clk 0:02:02.8]} 26. Nd3 {[%clk 0:00:13.9]} 26... Bg5 {[%clk
0:02:02.7]} 27. Qe5 {[%clk 0:00:11.9]} 27... Bxc1 {[%clk 0:02:01.5]} 28. Bxc1
{[%clk 0:00:13.8]} 28... axb3 {[%clk 0:02:01.3]} 29. axb3 {[%clk 0:00:15.7]}
29... Nc3 {[%clk 0:02:00.1]} 30. Nf4 {[%clk 0:00:14.8]} 30... Re8 {[%clk
0:01:57.1]} 31. g5 {[%clk 0:00:15.9]} 31... hxg5 {[%clk 0:01:57.1]} 32. Qxg5
{[%clk 0:00:17.8]} 32... f6 {[%clk 0:01:57.6]} 33. Qg3 {[%clk 0:00:14]} 33... e5
{[%clk 0:01:57.6]} 34. Nh5 {[%clk 0:00:14.3]} 34... Nxe2+ {[%clk 0:01:47.6]} 35.
Rxe2 {[%clk 0:00:15.1]} 35... Qxe2 {[%clk 0:01:49.5]} 36. Nxf6+ {[%clk
0:00:16.9]} 36... Kf7 {[%clk 0:01:48.8]} 37. Bf1 {[%clk 0:00:07.2]} 37... Qe1
{[%clk 0:01:42]} 38. Nxe8 {[%clk 0:00:08]} 38... Kxe8 {[%clk 0:01:42.6]} 39. Be3
{[%clk 0:00:09.2]} 39... Ra1 {[%clk 0:01:41.8]} 40. Qxe5+ {[%clk 0:00:09.8]}
40... Kf7 {[%clk 0:01:39.6]} 41. Qc7+ {[%clk 0:00:10.9]} 41... Kf8 {[%clk
0:01:29.5]} 42. Qd8+ {[%clk 0:00:11.4]} 42... Kf7 {[%clk 0:01:30.2]} 43. Qd7+
{[%clk 0:00:12.9]} 43... Kf8 {[%clk 0:01:31]} 44. Qd8+ {[%clk 0:00:10.1]} 44...
Kf7 {[%clk 0:01:31.9]} 45. Qc7+ {[%clk 0:00:11.3]} 45... Kf6 {[%clk 0:01:11.6]}
46. Qxc6+ {[%clk 0:00:12]} 46... Kf7 {[%clk 0:01:08]} 47. Qxd5+ {[%clk
0:00:12.8]} 47... Kf8 {[%clk 0:01:08.8]} 48. Qd8+ {[%clk 0:00:10.4]} 48... Kf7
{[%clk 0:01:09.6]} 49. Qd7+ {[%clk 0:00:11.2]} 49... Kf6 {[%clk 0:01:09.2]} 50.
Qc6+ {[%clk 0:00:05.6]} 50... Ke7 {[%clk 0:01:04.4]} 51. Bg5+ {[%clk 0:00:05.5]}
51... Kf7 {[%clk 0:01:04.9]} 52. Qf3+ {[%clk 0:00:03.1]} 52... Kg6 {[%clk
0:01:04.4]} 53. Qg3 {[%clk 0:00:02.5]} 53... Qxf1+ {[%clk 0:01:04.1]} 54. Kh2
{[%clk 0:00:04.4]} 54... Qh1# {[%clk 0:01:06]} 0-1

[Event "*** Titled Tuesday 3|2 Blitz"]
[Site "Chess.com"]
[Date "2017.06.06"]
[Round "7"]
[White "Saitama_Hero"]
[Black "Divertissement"]
[Result "0-1"]
[WhiteElo "2240"]
[BlackElo "2424"]
[TimeControl "180+2"]
[EndTime "15:22:28 PDT"]
[Termination "Divertissement won by resignation"]

1. b3 {[%clk 0:03:00.3]} 1... d6 {[%clk 0:02:56.7]} 2. Bb2 {[%clk 0:02:58]} 2...
Nd7 {[%clk 0:02:58]} 3. d4 {[%clk 0:02:57]} 3... Ngf6 {[%clk 0:02:57.5]} 4. Nd2
{[%clk 0:02:57.2]} 4... g6 {[%clk 0:02:57.4]} 5. e4 {[%clk 0:02:57.2]} 5... Bg7
{[%clk 0:02:58.4]} 6. Ngf3 {[%clk 0:02:53.5]} 6... O-O {[%clk 0:02:59.3]} 7. Bd3
{[%clk 0:02:48.4]} 7... c5 {[%clk 0:03:00]} 8. d5 {[%clk 0:02:42.5]} 8... Ng4
{[%clk 0:03:00.3]} 9. Bxg7 {[%clk 0:02:41.5]} 9... Kxg7 {[%clk 0:03:01.4]} 10.
O-O {[%clk 0:02:39.7]} 10... a6 {[%clk 0:02:59.3]} 11. h3 {[%clk 0:02:39.8]}
11... Nge5 {[%clk 0:02:59.8]} 12. Nxe5 {[%clk 0:02:38.6]} 12... Nxe5 {[%clk
0:03:00.6]} 13. Be2 {[%clk 0:02:39.7]} 13... f5 {[%clk 0:02:58.9]} 14. f4 {[%clk
0:02:32.5]} 14... Nf7 {[%clk 0:02:59.3]} 15. Qc1 {[%clk 0:02:24.2]} 15... b5
{[%clk 0:02:52]} 16. Qb2+ {[%clk 0:02:22.5]} 16... Kg8 {[%clk 0:02:52.6]} 17. e5
{[%clk 0:02:21.1]} 17... Qb6 {[%clk 0:02:44.9]} 18. e6 {[%clk 0:02:16.1]} 18...
Nd8 {[%clk 0:02:35.5]} 19. Kh2 {[%clk 0:02:06.3]} 19... c4 {[%clk 0:02:27.6]}
20. bxc4 {[%clk 0:02:05.4]} 20... Qe3 {[%clk 0:02:27.5]} 21. Rf3 {[%clk
0:01:10.5]} 21... Qxe2 {[%clk 0:02:13.5]} 22. Nb3 {[%clk 0:01:09.3]} 22... Qxc4
{[%clk 0:02:10.4]} 23. Rd1 {[%clk 0:01:07.9]} 23... Nb7 {[%clk 0:02:06.8]} 24.
h4 {[%clk 0:00:58.7]} 24... Nc5 {[%clk 0:02:03.5]} 25. Rd4 {[%clk 0:00:52.9]}
25... Qe2 {[%clk 0:02:00.7]} 26. h5 {[%clk 0:00:47]} 26... Ne4 {[%clk
0:01:52.1]} 27. h6 {[%clk 0:00:45.1]} 27... Nf6 {[%clk 0:01:49]} 28. Rd2 {[%clk
0:00:41.7]} 28... Qe1 {[%clk 0:01:35.4]} 29. Rg3 {[%clk 0:00:33.2]} 29... Bb7
{[%clk 0:01:29.3]} 30. Rdd3 {[%clk 0:00:27.1]} 30... Rac8 {[%clk 0:01:10.8]} 31.
Nd4 {[%clk 0:00:26.4]} 31... Qe4 {[%clk 0:01:08.7]} 32. Rde3 {[%clk 0:00:17.2]}
32... Qxd5 {[%clk 0:01:08.3]} 33. Rg5 {[%clk 0:00:18]} 33... Ng4+ {[%clk
0:00:50.6]} 34. Rxg4 {[%clk 0:00:16.3]} 34... fxg4 {[%clk 0:00:51.4]} 35. Nf3
{[%clk 0:00:15.4]} 35... Rf6 {[%clk 0:00:45.8]} 36. Nh4 {[%clk 0:00:15.7]} 36...
Qh5 {[%clk 0:00:42.4]} 37. Kg3 {[%clk 0:00:15.4]} 37... Qc5 {[%clk 0:00:35.9]}
38. Rd3 {[%clk 0:00:12.1]} 38... Rcf8 {[%clk 0:00:34.9]} 39. f5 {[%clk
0:00:09.5]} 39... gxf5 {[%clk 0:00:30.2]} 40. Rc3 {[%clk 0:00:09.7]} 40... Qe5+
{[%clk 0:00:27.6]} 41. Kf2 {[%clk 0:00:11.1]} 41... f4 {[%clk 0:00:26.8]} 42.
Qb4 {[%clk 0:00:08.4]} 42... g3+ {[%clk 0:00:26.6]} 43. Kf1 {[%clk 0:00:08.1]}
43... Bd5 {[%clk 0:00:25.2]} 44. Rc7 {[%clk 0:00:07.1]} 44... Bc4+ {[%clk
0:00:25.6]} 45. Kg1 {[%clk 0:00:06.1]} 45... Qe3+ {[%clk 0:00:25.2]} 46. Kh1
{[%clk 0:00:06.5]} 46... Qc1+ {[%clk 0:00:25.7]} 0-1

[Event "*** Titled Tuesday 3|2 Blitz"]
[Site "Chess.com"]
[Date "2017.06.06"]
[Round "7"]
[White "sergiochess83"]
[Black "GeorgMeier"]
[Result "1/2-1/2"]
[WhiteElo "2646"]
[BlackElo "2774"]
[TimeControl "180+2"]
[EndTime "15:22:39 PDT"]
[Termination "Game drawn - insufficient material"]

1. e4 {[%clk 0:03:02]} 1... e6 {[%clk 0:03:01.4]} 2. d4 {[%clk 0:03:03.1]} 2...
d5 {[%clk 0:03:02.7]} 3. Nd2 {[%clk 0:03:05]} 3... dxe4 {[%clk 0:03:03.7]} 4.
Nxe4 {[%clk 0:03:05.3]} 4... Nd7 {[%clk 0:03:05.6]} 5. Nf3 {[%clk 0:03:05.5]}
5... Ngf6 {[%clk 0:03:07.5]} 6. Bd3 {[%clk 0:03:04.5]} 6... c5 {[%clk
0:03:08.4]} 7. Bg5 {[%clk 0:03:03]} 7... cxd4 {[%clk 0:03:06]} 8. Nxd4 {[%clk
0:03:02.8]} 8... Be7 {[%clk 0:03:07.1]} 9. Nxf6+ {[%clk 0:03:02.1]} 9... Bxf6
{[%clk 0:03:08.4]} 10. Bxf6 {[%clk 0:03:01.9]} 10... Nxf6 {[%clk 0:03:09.6]} 11.
c3 {[%clk 0:02:59.4]} 11... O-O {[%clk 0:03:10.3]} 12. O-O {[%clk 0:03:00.4]}
12... e5 {[%clk 0:03:06.5]} 13. Ne2 {[%clk 0:03:01.3]} 13... Be6 {[%clk
0:03:04]} 14. Ng3 {[%clk 0:03:01.7]} 14... Qb6 {[%clk 0:02:57.8]} 15. Qc2 {[%clk
0:03:00.6]} 15... Rad8 {[%clk 0:02:46.7]} 16. Rfe1 {[%clk 0:02:58.8]} 16... Qc7
{[%clk 0:02:47.8]} 17. Bf5 {[%clk 0:02:54.5]} 17... Bd5 {[%clk 0:02:44.9]} 18.
Ne4 {[%clk 0:02:40.3]} 18... Bxe4 {[%clk 0:02:34.6]} 19. Bxe4 {[%clk 0:02:41.2]}
19... Rd7 {[%clk 0:02:30.6]} 20. Bf5 {[%clk 0:02:38.6]} 20... Rd5 {[%clk
0:02:29.3]} 21. Rad1 {[%clk 0:02:37.4]} 21... Rfd8 {[%clk 0:02:30.3]} 22. Rxd5
{[%clk 0:02:34.2]} 22... Rxd5 {[%clk 0:02:31.3]} 23. Rd1 {[%clk 0:02:18.3]}
23... Rxd1+ {[%clk 0:02:28.1]} 24. Qxd1 {[%clk 0:02:18.9]} 24... g6 {[%clk
0:02:20.1]} 25. Bc2 {[%clk 0:02:17.3]} 25... Kg7 {[%clk 0:02:18.8]} 26. Bb3
{[%clk 0:02:14.1]} 26... a5 {[%clk 0:02:20]} 27. Qd3 {[%clk 0:02:10.5]} 27... b6
{[%clk 0:02:19.2]} 28. g3 {[%clk 0:02:06.2]} 28... h6 {[%clk 0:02:13.4]} 29. h4
{[%clk 0:02:05.4]} 29... Qc5 {[%clk 0:02:02.7]} 30. Qc4 {[%clk 0:01:54.2]} 30...
Qxc4 {[%clk 0:02:01.7]} 31. Bxc4 {[%clk 0:01:56.1]} 31... Ne4 {[%clk 0:02:03.3]}
32. Bd5 {[%clk 0:01:53.6]} 32... Nc5 {[%clk 0:02:01.5]} 33. b3 {[%clk
0:01:38.8]} 33... f5 {[%clk 0:01:58.8]} 34. Kf1 {[%clk 0:01:39.3]} 34... Kf6
{[%clk 0:01:49.9]} 35. Ke2 {[%clk 0:01:36.6]} 35... e4 {[%clk 0:01:34.4]} 36. f4
{[%clk 0:01:36]} 36... exf3+ {[%clk 0:01:34]} 37. Bxf3 {[%clk 0:01:30.8]} 37...
Ke5 {[%clk 0:01:34.7]} 38. Ke3 {[%clk 0:01:27.8]} 38... g5 {[%clk 0:01:32.8]}
39. hxg5 {[%clk 0:01:28.9]} 39... hxg5 {[%clk 0:01:34.7]} 40. b4 {[%clk
0:01:26.9]} 40... Na4 {[%clk 0:00:53.8]} 41. Kd3 {[%clk 0:01:16.9]} 41... Nb2+
{[%clk 0:00:53.5]} 42. Kc2 {[%clk 0:01:16.8]} 42... Nc4 {[%clk 0:00:54.7]} 43.
Kd3 {[%clk 0:01:14.9]} 43... Nd6 {[%clk 0:00:54.9]} 44. bxa5 {[%clk 0:00:56.4]}
44... bxa5 {[%clk 0:00:56.8]} 45. c4 {[%clk 0:00:58]} 45... Ne4 {[%clk
0:00:20.3]} 46. Bxe4 {[%clk 0:00:53.7]} 46... fxe4+ {[%clk 0:00:22.2]} 47. Ke3
{[%clk 0:00:50.9]} 47... a4 {[%clk 0:00:23]} 48. a3 {[%clk 0:00:21.5]} 48... g4
{[%clk 0:00:22.8]} 49. c5 {[%clk 0:00:21.7]} 49... Kd5 {[%clk 0:00:24.1]} 50. c6
{[%clk 0:00:22.7]} 50... Kxc6 {[%clk 0:00:25.6]} 51. Kxe4 {[%clk 0:00:24.2]}
51... Kc5 {[%clk 0:00:26.9]} 52. Kf4 {[%clk 0:00:13.1]} 52... Kc4 {[%clk
0:00:28]} 53. Kxg4 {[%clk 0:00:15]} 53... Kb3 {[%clk 0:00:29.7]} 54. Kf5 {[%clk
0:00:13.6]} 54... Kxa3 {[%clk 0:00:31.6]} 55. g4 {[%clk 0:00:15]} 55... Kb2
{[%clk 0:00:32.5]} 56. g5 {[%clk 0:00:16.9]} 56... a3 {[%clk 0:00:34.1]} 57. g6
{[%clk 0:00:18.8]} 57... a2 {[%clk 0:00:35.6]} 58. g7 {[%clk 0:00:20.7]} 58...
a1=Q {[%clk 0:00:37.2]} 59. g8=Q {[%clk 0:00:22.6]} 59... Qf1+ {[%clk 0:00:38]}
60. Kg6 {[%clk 0:00:23.4]} 60... Qg2+ {[%clk 0:00:38.9]} 61. Kf7 {[%clk
0:00:24.6]} 61... Qxg8+ {[%clk 0:00:40.8]} 62. Kxg8 {[%clk 0:00:26.1]} 1/2-1/2

[Event "*** Titled Tuesday 3|2 Blitz"]
[Site "Chess.com"]
[Date "2017.06.06"]
[Round "7"]
[White "dolynachess"]
[Black "Setne007"]
[Result "1-0"]
[WhiteElo "2306"]
[BlackElo "2039"]
[TimeControl "180+2"]
[EndTime "15:23:05 PDT"]
[Termination "dolynachess won by resignation"]

1. c4 {[%clk 0:02:58]} 1... e6 {[%clk 0:03:02]} 2. g3 {[%clk 0:02:58.9]} 2... d5
{[%clk 0:03:02.9]} 3. Bg2 {[%clk 0:03:00.2]} 3... Nf6 {[%clk 0:03:04.3]} 4. Nf3
{[%clk 0:03:01.5]} 4... Be7 {[%clk 0:03:05.8]} 5. O-O {[%clk 0:03:02.9]} 5...
O-O {[%clk 0:03:07.3]} 6. d4 {[%clk 0:03:04.4]} 6... Nbd7 {[%clk 0:03:06.1]} 7.
b3 {[%clk 0:02:57.7]} 7... c6 {[%clk 0:02:59.1]} 8. Bb2 {[%clk 0:02:58.6]} 8...
b6 {[%clk 0:03:00.6]} 9. Qc2 {[%clk 0:02:56.9]} 9... Ba6 {[%clk 0:03:00.8]} 10.
Nbd2 {[%clk 0:02:57.6]} 10... Rc8 {[%clk 0:03:01.2]} 11. Rac1 {[%clk 0:02:56.6]}
11... Bb7 {[%clk 0:02:58.8]} 12. Rfe1 {[%clk 0:02:57]} 12... c5 {[%clk
0:02:54.9]} 13. Qb1 {[%clk 0:02:56.3]} 13... a5 {[%clk 0:02:44.2]} 14. cxd5
{[%clk 0:02:46.9]} 14... exd5 {[%clk 0:02:42.5]} 15. e3 {[%clk 0:02:43.7]} 15...
a4 {[%clk 0:02:41.1]} 16. dxc5 {[%clk 0:02:40.6]} 16... bxc5 {[%clk 0:02:41.1]}
17. bxa4 {[%clk 0:02:36]} 17... Bc6 {[%clk 0:02:33.8]} 18. Qc2 {[%clk
0:02:07.8]} 18... Ra8 {[%clk 0:02:29.3]} 19. e4 {[%clk 0:01:51.3]} 19... Bxa4
{[%clk 0:02:27.4]} 20. Qb1 {[%clk 0:01:51.1]} 20... d4 {[%clk 0:02:20.1]} 21. e5
{[%clk 0:01:48.5]} 21... Ne8 {[%clk 0:02:18.9]} 22. Ne4 {[%clk 0:01:41.1]} 22...
Rb8 {[%clk 0:02:13.9]} 23. h4 {[%clk 0:01:28.8]} 23... h6 {[%clk 0:02:14.3]} 24.
Qa1 {[%clk 0:01:23]} 24... Nc7 {[%clk 0:02:14]} 25. Ba3 {[%clk 0:01:20.7]} 25...
Ne6 {[%clk 0:02:14]} 26. Nfd2 {[%clk 0:01:02.3]} 26... Bb5 {[%clk 0:01:40.3]}
27. Nb3 {[%clk 0:00:57.7]} 27... Rc8 {[%clk 0:01:22.5]} 28. f4 {[%clk
0:00:57.7]} 28... Bxh4 {[%clk 0:01:17]} 29. gxh4 {[%clk 0:00:53.4]} 29... Qxh4
{[%clk 0:01:17.6]} 30. Nbxc5 {[%clk 0:00:40.6]} 30... Nxf4 {[%clk 0:01:05.3]}
31. Qxd4 {[%clk 0:00:21.5]} 31... Qg4 {[%clk 0:00:55.5]} 32. Rc2 {[%clk
0:00:18.3]} 32... Nxc5 {[%clk 0:00:40.9]} 33. Bxc5 {[%clk 0:00:18.7]} 33... Rfd8
{[%clk 0:00:35.6]} 34. Nd6 {[%clk 0:00:19.6]} 34... Nh3+ {[%clk 0:00:14.1]} 35.
Kh2 {[%clk 0:00:19.3]} 35... Qxd4 {[%clk 0:00:15.2]} 36. Bxd4 {[%clk 0:00:21]}
36... Rxc2 {[%clk 0:00:15.1]} 37. Kxh3 {[%clk 0:00:19.9]} 37... Bd7+ {[%clk
0:00:15.5]} 38. Kh2 {[%clk 0:00:20.9]} 38... Rxa2 {[%clk 0:00:15.8]} 39. Kg3
{[%clk 0:00:20.4]} 39... Rb8 {[%clk 0:00:15.9]} 40. Bd5 {[%clk 0:00:21.2]} 40...
Ra3+ {[%clk 0:00:15.8]} 41. Kf4 {[%clk 0:00:22.2]} 41... Be6 {[%clk 0:00:17.1]}
42. Bxe6 {[%clk 0:00:22.6]} 42... fxe6 {[%clk 0:00:18.5]} 43. Rg1 {[%clk
0:00:23.8]} 43... Rf8+ {[%clk 0:00:19.3]} 44. Ke4 {[%clk 0:00:25.1]} 44... Rff3
{[%clk 0:00:20.3]} 45. Nc4 {[%clk 0:00:25.4]} 45... Rab3 {[%clk 0:00:19.3]} 46.
Na5 {[%clk 0:00:26.1]} 46... Ra3 {[%clk 0:00:19.3]} 47. Nc4 {[%clk 0:00:27.2]}
47... Rab3 {[%clk 0:00:20.5]} 48. Nd2 {[%clk 0:00:28.3]} 48... Rfd3 {[%clk
0:00:16.2]} 49. Nxb3 {[%clk 0:00:28.1]} 49... Rxb3 {[%clk 0:00:17.3]} 50. Be3
{[%clk 0:00:27.8]} 50... g5 {[%clk 0:00:17.6]} 51. Rf1 {[%clk 0:00:27.1]} 51...
Kg7 {[%clk 0:00:16.3]} 52. Rf6 {[%clk 0:00:27.8]} 52... Rb6 {[%clk 0:00:17]} 53.
Kf3 {[%clk 0:00:29]} 53... Rc6 {[%clk 0:00:17.2]} 54. Kg4 {[%clk 0:00:30]} 54...
Rc4+ {[%clk 0:00:17.8]} 55. Kg3 {[%clk 0:00:31.1]} 55... Rc6 {[%clk 0:00:18.1]}
56. Bd2 {[%clk 0:00:31.1]} 56... Ra6 {[%clk 0:00:18.1]} 57. Bb4 {[%clk
0:00:30.8]} 57... Rc6 {[%clk 0:00:18.3]} 58. Bf8+ {[%clk 0:00:31.5]} 58... Kh7
{[%clk 0:00:19.6]} 59. Bxh6 {[%clk 0:00:31.7]} 59... Rc4 {[%clk 0:00:15.5]} 60.
Bxg5 {[%clk 0:00:31.5]} 1-0

[Event "*** Titled Tuesday 3|2 Blitz"]
[Site "Chess.com"]
[Date "2017.06.06"]
[Round "7"]
[White "ANLex1963"]
[Black "lucasmito"]
[Result "1-0"]
[WhiteElo "2201"]
[BlackElo "2044"]
[TimeControl "180+2"]
[EndTime "15:23:06 PDT"]
[Termination "ANLex1963 won by checkmate"]

1. d4 {[%clk 0:02:44.7]} 1... d5 {[%clk 0:02:59.2]} 2. c4 {[%clk 0:02:44]} 2...
c6 {[%clk 0:03:00.9]} 3. Nf3 {[%clk 0:02:43.1]} 3... Nf6 {[%clk 0:03:02.5]} 4.
Nc3 {[%clk 0:02:43.6]} 4... e6 {[%clk 0:03:04]} 5. e3 {[%clk 0:02:43.3]} 5...
Nbd7 {[%clk 0:03:05.6]} 6. Qc2 {[%clk 0:02:44]} 6... Be7 {[%clk 0:03:06.4]} 7.
g4 {[%clk 0:02:42.4]} 7... O-O {[%clk 0:02:59.6]} 8. g5 {[%clk 0:02:39.4]} 8...
Ne8 {[%clk 0:03:00.3]} 9. h4 {[%clk 0:02:36.6]} 9... f6 {[%clk 0:03:01.5]} 10.
Bd3 {[%clk 0:02:31.5]} 10... f5 {[%clk 0:03:00.1]} 11. Bd2 {[%clk 0:02:28]}
11... Nd6 {[%clk 0:02:59.8]} 12. cxd5 {[%clk 0:02:12.1]} 12... exd5 {[%clk
0:02:46.8]} 13. O-O-O {[%clk 0:02:09.1]} 13... Ne4 {[%clk 0:02:42.3]} 14. Rdf1
{[%clk 0:01:58.3]} 14... b5 {[%clk 0:02:08.3]} 15. Be1 {[%clk 0:01:55.9]} 15...
Nb6 {[%clk 0:02:00.3]} 16. Ne5 {[%clk 0:01:50.7]} 16... Bd7 {[%clk 0:01:43.8]}
17. Ne2 {[%clk 0:01:45.7]} 17... Nc4 {[%clk 0:01:38.3]} 18. Kb1 {[%clk
0:01:36.6]} 18... Nxe5 {[%clk 0:01:33.4]} 19. dxe5 {[%clk 0:01:35.5]} 19... a5
{[%clk 0:01:26.1]} 20. Nd4 {[%clk 0:01:19.7]} 20... c5 {[%clk 0:01:18.9]} 21.
Nxb5 {[%clk 0:01:10.8]} 21... Bxb5 {[%clk 0:01:15.8]} 22. Bxb5 {[%clk
0:01:10.3]} 22... c4 {[%clk 0:01:16.4]} 23. f3 {[%clk 0:01:05.6]} 23... Nc5
{[%clk 0:01:17.2]} 24. Bc3 {[%clk 0:00:53.8]} 24... a4 {[%clk 0:01:04.1]} 25.
Bd4 {[%clk 0:00:31.2]} 25... Nd3 {[%clk 0:00:46.8]} 26. Bxc4 {[%clk 0:00:27.2]}
26... Nxb2 {[%clk 0:00:39.9]} 27. Bxb2 {[%clk 0:00:20.8]} 27... dxc4 {[%clk
0:00:25.5]} 28. Qxc4+ {[%clk 0:00:20.9]} 28... Kh8 {[%clk 0:00:26.9]} 29. Bd4
{[%clk 0:00:19.8]} 29... Qa5 {[%clk 0:00:23.2]} 30. Ka1 {[%clk 0:00:18.6]} 30...
Rfc8 {[%clk 0:00:14.8]} 31. Qd3 {[%clk 0:00:19.1]} 31... Bb4 {[%clk 0:00:14.2]}
32. Rc1 {[%clk 0:00:17.9]} 32... Bd2 {[%clk 0:00:15.1]} 33. Rxc8+ {[%clk
0:00:16.6]} 33... Rxc8 {[%clk 0:00:16.5]} 34. Rb1 {[%clk 0:00:17.3]} 34... a3
{[%clk 0:00:15.2]} 35. e6 {[%clk 0:00:16.8]} 35... Qd8 {[%clk 0:00:13.2]} 36.
Qxd2 {[%clk 0:00:14.3]} 36... Qe7 {[%clk 0:00:13.3]} 37. Qd3 {[%clk 0:00:13.9]}
37... Qxe6 {[%clk 0:00:13.7]} 38. Rd1 {[%clk 0:00:13.2]} 38... Qf7 {[%clk
0:00:09.8]} 39. Qxa3 {[%clk 0:00:13.5]} 39... f4 {[%clk 0:00:09.6]} 40. e4
{[%clk 0:00:12.4]} 40... Rd8 {[%clk 0:00:10.2]} 41. Qb2 {[%clk 0:00:13.2]} 41...
Rc8 {[%clk 0:00:08.9]} 42. Rc1 {[%clk 0:00:12.1]} 42... Rd8 {[%clk 0:00:08.6]}
43. Rc5 {[%clk 0:00:10.7]} 43... Kg8 {[%clk 0:00:08.2]} 44. Qc3 {[%clk
0:00:09.8]} 44... Qb7 {[%clk 0:00:08.3]} 45. Rc4 {[%clk 0:00:09.6]} 45... Rb8
{[%clk 0:00:08.6]} 46. Qb3 {[%clk 0:00:09.9]} 46... Qa8 {[%clk 0:00:07.1]} 47.
Rc8# {[%clk 0:00:08.9]} 1-0